[Event "FIDE CB Open 2022"]
[Site "Ceske Budejovice"]
[Date "2022.07.06"]
[Round "6.7"]
[White "Havelka, Josef"]
[Black "Mai, Alexander Oliver"]
[Result "1-0"]
[ECO "B91"]
[WhiteElo "2396"]
[BlackElo "2159"]
[Annotator "TA"]
[PlyCount "95"]
[EventDate "2022.07.01"]
[EventType "swiss"]
[EventCountry "CZE"]
[SourceTitle "playchess.com"]
[Source "ChessBase"]
[SourceQuality "1"]
[TimeControl "40/5400+30:1800+30"]

{[%evp 19,95,0,-8,-21,-19,-11,-25,-20,-25,-34,-17,-35,-36,-34,-33,-38,-10,-30,0,0,0,0,0,0,0,-22,103,43,27,14,93,0,41,6,64,46,52,37,39,0,12,0,0,-20,22,10,22,-48,-43,-41,-49,-54,-51,-43,666,690,669,680,661,653,618,591,739,731,29979,1075,1400,792,29984,29985,29985,29986,29986,29987,29988,29988,29988,29989]} 1. e4 {[%emt 0:00:14]} c5 {[%emt 0:00:07]} 2. Nf3 {[%emt 0:00:27]} d6 {[%emt 0:00:09]} 3. d4 {[%emt 0:00:09]} cxd4 {[%emt 0:00:08]} 4. Nxd4 {[%emt 0:00:06]} Nf6 {[%emt 0:00:08]} 5. Nc3 {[%emt 0:00:03]} a6 {[%emt 0:00:08]} 6. g3 {[%emt 0:01:30]} e5 {[%emt 0:01:04]} 7. Nde2 {[%emt 0:01:17]} Be7 {[%emt 0:00:35]} 8. Bg2 {[%emt 0:00:18]} O-O {[%emt 0:04:28]} 9. h3 {[%emt 0:02:07]} b5 {[%emt 0:02:11][%cal Bb7b5,Bb5b4][%mdl 32]} 10. O-O {[%emt 0:10:29]} Nbd7 {[%emt 0:01:47]} 11. Be3 {[%emt 0:13:31] B91: Sicilian Najdorf: 6 g3.} Bb7 {[%emt 0:01:23]} 12. g4 {[%emt 0:12:53]} b4 {[%emt 0:07:50]} 13. Nd5 {[%emt 0:00:05] Black has an edge.} Nxd5 {[%emt 0:00:47]} 14. exd5 {[%emt 0:00:06]} Bg5 {[%emt 0:01:02]} 15. Qd2 {[%emt 0:01:28]} Bxe3 {[%emt 0:00:34]} 16. fxe3 {[%emt 0:01:10]} a5 {[%emt 0:04:57][%cal Oh7h5]} 17. Ng3 {[%emt 0:02:13] [#]} Rc8 $146 {[%emt 0:06:19]} ({Predecessor:} 17... Nb6 18. b3 Rc8 19. Rf2 Rc5 20. e4 Nc8 21. a3 bxa3 22. Rxa3 Nb6 23. Bf1 Qc7 {1-0 (32) Martinez,R (2441)-Rambaldi,F (2308) Milan 2012}) 18. Kh2 {[%emt 0:09:22]} Nb6 {[%emt 0:03:46]} 19. b3 {[%emt 0:09:25]} Rc5 {[%emt 0:05:25][%cal Rb7d5]} 20. e4 {[%emt 0:00:59]} Qc7 {[%emt 0:01:14]} 21. Rf2 {[%emt 0:00:54]} Rc8 {[%emt 0:08:35][%cal Rc5c2]} 22. Rc1 {[%emt 0:00:06]} g6 {[%emt 0:02:30] [#]} (22... Nd7 $11 {remains equal.}) 23. Bf1 {[%emt 0:01:05]} (23. Nf5 $1 $16 {[%mdl 512]} f6 24. Nh6+ Kg7 25. g5) 23... Qe7 $14 {[%emt 0:16:05] Inhibits Qg5.} 24. Bd3 {[%emt 0:09:35]} Ra8 {[%emt 0:02:54]} (24... Nd7 $11) 25. Qe2 {[%emt 0:11:26]} (25. Rcf1 $16 Rf8 26. Qh6) 25... Rc7 {[%emt 0:02:31]} 26. Rg1 {[%emt 0:01:32][%cal Og3f5] Black must now prevent Nf5!} Kh8 {[%emt 0:00:40]} ({Better is} 26... Nd7 $11) 27. Rgf1 {[%emt 0:02:09]} Rf8 $1 {[%emt 0:00:34]} 28. Qe3 {[%emt 0:02:17]} Nd7 {[%emt 0:00:43]} 29. Bb5 {[%emt 0:03:05]} (29. Qa7 $5 {[%cal Ra7a5]}) 29... Nc5 {[%emt 0:00:20]} 30. Qe2 {[%emt 0:01:09]} Bc8 {[%emt 0:01:15]} 31. Rf6 {[%emt 0:00:39]} Ra7 {[%emt 0:00:29]} 32. R1f2 {[%emt 0:01:08]} (32. Qe3 {looks sharper.} Rb7 33. Qh6 Rg8 34. R1f2) 32... Bd7 {[%emt 0:02:01]} 33. g5 {[%emt 0:00:20]} (33. Bd3 $11) 33... Bxb5 $1 $15 {[%emt 0:01:00]} 34. Qxb5 {[%emt 0:00:05]} Nd7 {[%emt 0:00:19]} 35. R6f3 {[%emt 0:02:24]} Qxg5 {[%emt 0:02:13]} 36. Rxf7 {[%emt 0:00:49]} Kg8 {[%emt 0:01:04][%mdl 8192] Loses the game.} (36... Rxf7 $15 37. Rxf7 Qd8) 37. Rxf8+ $18 {[%emt 0:00:34]} Nxf8 {[%emt 0:00:02] [#]} 38. Rxf8+ {[%emt 0:00:39][%mdl 512]} Kxf8 {[%emt 0:00:01][%mdl 4096] Endgame KQR-KQN} (38... Kg7 39. Rf2) 39. Qb8+ {[%emt 0:00:08]} Kg7 {[%emt 0:00:13]} 40. Qxa7+ {[%emt 0:00:04]} Kh6 {[%emt 0:00:04]} 41. Qf2 {[%emt 0:30:52][%cal Rf2f8]} Qc1 {[%emt 0:30:32]} 42. h4 {[%emt 0:01:59]} (42. Qf8+ $142 Kg5 43. Qe7+ Kh6 44. h4 Qf4 45. Kh3 a4 46. Qxd6 axb3 47. cxb3) 42... Kg7 {[%emt 0:00:04]} 43. Kh3 {[%emt 0:00:00] aiming for Qa7+.} Qa3 {[%emt 0:00:00]} 44. Qa7+ {[%emt 0:00:00] White mates.} Kg8 {[%emt 0:00:00]} 45. Qb8+ {[%emt 0:00:00]} Kf7 {[%emt 0:00:00]} 46. Qxd6 {[%emt 0:00:00]} Qxa2 {[%emt 0:00:00]} 47. Qe6+ {[%emt 0:00:00]} Kf8 {[%emt 0:00:00]} 48. d6 {[%emt 0:00:00] Weighted Error Value: White=0.20 (precise) /Black=0.62} 1-0

[Event "FIDE CB Open 2022"]
[Site "Ceske Budejovice"]
[Date "2022.07.06"]
[Round "6.8"]
[White "Kratochvil, Vit"]
[Black "Simek, Petr"]
[Result "1-0"]
[ECO "B70"]
[WhiteElo "2237"]
[BlackElo "2348"]
[Annotator "TA"]
[PlyCount "99"]
[EventDate "2022.07.01"]
[EventType "swiss"]
[EventCountry "CZE"]
[SourceTitle "playchess.com"]
[Source "ChessBase"]
[SourceQuality "1"]
[TimeControl "40/5400+30:1800+30"]

{[%evp 15,99,0,6,-30,-25,-17,-18,-23,0,0,0,0,12,0,18,0,8,0,16,0,26,-70,-21,-45,0,0,0,0,0,-14,-3,-49,0,-124,-118,-145,-139,-122,0,0,0,0,0,-16,4,9,20,0,153,159,164,155,166,163,143,125,163,104,105,97,296,296,289,250,239,164,177,130,616,584,903,486,457,431,442,443,12836,12836,12837,12836,12839,12840,12840,12838,12841,12842]} 1. e4 {[%emt 0:00:05]} c5 {[%emt 0:07:53]} 2. Nc3 {[%emt 0:00:39]} d6 {[%emt 0:00:06]} 3. Nf3 {[%emt 0:07:07]} Nf6 {[%emt 0:00:47]} 4. d4 {[%emt 0:00:44]} cxd4 {[%emt 0:00:05]} 5. Nxd4 {[%emt 0:00:18]} a6 {[%emt 0:00:06]} 6. Qf3 {[%emt 0:00:51]} g6 {[%emt 0:00:15]} 7. h3 {[%emt 0:00:55]} Bg7 {[%emt 0:00:05]} 8. Be3 {[%emt 0:04:15]} O-O {[%emt 0:00:07]} 9. O-O-O {[%emt 0:00:42] B70: Sicilian Dragon: 6 g3 and 6 Be2 (without a later Be3).} Nc6 {[%emt 0:00:07] is the legacy move (9...Nbd7).} 10. Kb1 {[%emt 0:11:00]} Bd7 {[%emt 0:05:01]} 11. Nd5 {[%emt 0:08:36] The position is equal.} Ne5 {[%emt 0:26:38]} 12. Nxf6+ {[%emt 0:07:48]} Bxf6 {[%emt 0:00:53]} 13. Qg3 {[%emt 0:00:29] [#]} Qc7 $146 {[%emt 0:18:49]} ({Predecessor:} 13... Qa5 14. Nb3 Qc7 15. f4 Nc6 16. h4 Rfc8 17. c3 h5 18. Be2 Bg7 19. Qf2 a5 {1-0 (32) Polgar,J (2698)-Swiercz,D (2594) Istanbul 2012}) 14. f4 {[%emt 0:04:29]} Rfc8 {[%emt 0:01:59]} 15. Qf2 {[%emt 0:32:00]} Nc4 {[%emt 0:02:47]} 16. Bxc4 {[%emt 0:02:54]} Qxc4 {[%emt 0:00:04]} 17. Rhf1 {[%emt 0:06:13][%cal Oe4e5]} Be8 {[%emt 0:21:51]} 18. Bc1 {[%emt 0:09:41]} (18. h4 $11) 18... Rc7 {[%emt 0:06:18]} (18... a5 $15) 19. Rfe1 {[%emt 0:00:34]} Qc5 {[%emt 0:01:50]} 20. Be3 {[%emt 0:00:34][%cal Oe4e5]} Rac8 {[%emt 0:00:23]} 21. Rd2 {[%emt 0:00:24][%cal Oe4e5]} Qb4 {[%emt 0:01:00]} 22. a3 {[%emt 0:00:33]} Qa4 {[%emt 0:00:22]} 23. g4 {[%emt 0:00:31]} (23. Nb3 $1 $11) 23... b5 {[%emt 0:00:36]} (23... Bc6 $15 {should be considered.} 24. Qf3 (24. g5 Bg7 $11) 24... Bb5) 24. g5 {[%emt 0:00:28]} (24. c3 a5 25. e5 (25. g5 Bxd4 26. Bxd4 b4 $17) 25... dxe5 26. fxe5 Bxe5 $15) (24. e5 $11 {keeps the balance.} dxe5 25. Nb3) 24... Bg7 $17 {[%emt 0:00:43]} 25. f5 {[%emt 0:00:28]} Be5 {[%emt 0:00:59]} (25... gxf5 26. Nxf5 Qc4 27. Nxg7 Kxg7 28. Bd4+ Kg8 29. e5 dxe5 30. Bxe5 $16) 26. Nf3 {[%emt 0:00:22] [#]} Bh8 {[%emt 0:02:58] This bishop pair is nice.} (26... Qxe4 27. Bb6 Qxf5 28. Bxc7 Rxc7 29. Nxe5 Qxf2 30. Rxf2 $16) (26... Bxb2 $1 $17 {[%mdl 512]} 27. Kxb2 b4) 27. Bd4 $11 {[%emt 0:00:24] Active counter play!} Bxd4 {[%emt 0:00:28]} 28. Nxd4 {[%emt 0:00:08] aiming for Qh4.} b4 {[%emt 0:00:38]} 29. Re3 {[%emt 0:00:27]} bxa3 {[%emt 0:00:34]} 30. Rxa3 {[%emt 0:00:06]} Qc4 {[%emt 0:00:17]} 31. h4 {[%emt 0:01:20][%cal Bh3h4,Bh4h5][%mdl 32]} Bb5 $2 {[%emt 0:00:34] [#]} (31... Rb8 $11) 32. h5 $1 $16 {[%emt 0:00:29] Hoping for hxg6.} gxf5 {[%emt 0:00:45]} (32... gxh5 33. Rh3 $14) 33. exf5 {[%emt 0:00:45]} ({But not} 33. Qxf5 $6 Bd7 34. Qf2 Rc5 $11) 33... Qf1+ {[%emt 0:00:20]} 34. Qxf1 {[%emt 0:00:19]} Bxf1 {[%emt 0:00:02]} 35. Rg3 {[%emt 0:00:39]} Rc5 {[%emt 0:00:28] [#]} 36. Rf2 {[%emt 0:00:32]} ({Better is} 36. f6 $1 $18) 36... Bb5 {[%emt 0:00:25]} 37. f6 {[%emt 0:00:34]} Re5 {[%emt 0:01:08]} (37... Bd7 $16) 38. Nf5 $18 {[%emt 0:00:28]} exf6 {[%emt 0:00:27]} 39. gxf6+ {[%emt 0:00:07]} Kh8 {[%emt 0:00:17]} 40. Nxd6 {[%emt 0:00:23][%cal Rd6f7]} Rf8 {[%emt 0:00:52]} 41. Rg7 {[%emt 0:11:51]} ({White should play} 41. c4 $18 Bd7 42. h6) 41... Be8 {[%emt 0:01:08][%mdl 8192] A mistake that costs the game.} (41... Bd7 $16 42. b3 (42. Nxf7+ Rxf7 43. h6 Be6 $17) 42... Be6) 42. h6 {[%emt 0:02:53] White is clearly winning.} Re6 {[%emt 0:00:28]} 43. Nc8 {[%emt 0:00:54]} Bc6 {[%emt 0:00:31]} 44. Ne7 {[%emt 0:04:09]} Be4 {[%emt 0:09:26]} 45. Re2 {[%emt 0:01:17]} Bf5 {[%emt 0:00:15]} (45... a5 $142 46. Kc1 Re8) 46. Rxe6 {[%emt 0:00:37]} Bxe6 {[%emt 0:00:18]} 47. Rg5 {[%emt 0:00:37]} Rd8 {[%emt 0:00:52]} 48. b3 {[%emt 0:00:21]} a5 {[%emt 0:00:29]} 49. Rxa5 {[%emt 0:03:32]} Bxb3 {[%emt 0:00:52]} 50. Nc6 {[%emt 0:00:27] Weighted Error Value: White=0.29 (precise) /Black=0.50} ({Not} 50. cxb3 Rd1+ 51. Kc2 Rd2+ 52. Kc3 Rd3+ 53. Kc4 Rc3+ 54. Kd4 Rc4+ 55. Ke5 Rc5+ 56. Nd5 Rxa5 $16) 1-0

[Event "FIDE CB Open 2022"]
[Site "Ceske Budejovice"]
[Date "2022.07.06"]
[Round "6.9"]
[White "Mostbauer, Florian"]
[Black "Bartos, Jan"]
[Result "1-0"]
[ECO "A13"]
[WhiteElo "2303"]
[BlackElo "2142"]
[Annotator "TA"]
[PlyCount "93"]
[EventDate "2022.07.01"]
[EventType "swiss"]
[EventCountry "CZE"]
[SourceTitle "playchess.com"]
[Source "ChessBase"]
[SourceQuality "1"]
[TimeControl "40/5400+30:1800+30"]

{[%evp 9,93,11,32,3,15,2,6,0,7,0,0,-4,6,0,8,12,31,15,46,46,15,0,0,-23,-19,-27,-16,-17,0,0,0,-6,0,0,0,0,66,58,58,66,46,48,52,17,49,0,0,0,0,0,0,0,159,159,193,190,208,0,0,0,611,962,1208,1183,1119,1046,921,977,891,887,717,588,12839,12838,12838,12839,12843,12840,12845,12845,12846,12846,12847,12847,12848,12848]} 1. c4 {[%emt 0:00:08]} e6 {[%emt 0:00:16]} 2. g3 {[%emt 0:00:56]} d5 {[%emt 0:00:19]} 3. Bg2 {[%emt 0:00:00]} Nf6 {[%emt 0:00:16]} 4. Nf3 {[%emt 0:00:02]} d4 {[%emt 0:00:30]} 5. d3 {[%emt 0:00:51]} h6 {[%emt 0:01:29]} 6. a3 {[%emt 0:02:18] [#] A13: English Opening: 1...e6.} a5 $146 {[%emt 0:00:12][%cal Ba7a5,Ba5a4][%mdl 32]} ({Predecessor:} 6... c5 7. Nbd2 Nc6 8. Rb1 a5 9. O-O Bd6 10. Ne1 e5 11. Nc2 O-O 12. Nf3 Re8 {0-1 (41) Pyclik,B (1553)-Reimanis,R (2397) Katowice 2021}) 7. e3 {[%emt 0:03:48]} c5 {[%emt 0:00:35]} 8. exd4 {[%emt 0:10:55] The position is equal.} cxd4 {[%emt 0:00:13]} (8... Nc6 9. dxc5 Bxc5 10. Nc3 $16) 9. Ne5 {[%emt 0:03:26]} Bd6 {[%emt 0:08:52]} 10. f4 {[%emt 0:10:32]} O-O {[%emt 0:04:05]} 11. Nd2 {[%emt 0:05:35]} a4 {[%emt 0:06:30]} 12. O-O {[%emt 0:02:43]} Qb6 {[%emt 0:03:19]} 13. Rb1 {[%emt 0:06:50]} Nc6 {[%emt 0:05:42]} 14. Nxc6 {[%emt 0:06:49]} bxc6 {[%emt 0:00:14]} 15. b4 {[%emt 0:00:35] aiming for c5.} axb3 $1 {[%emt 0:01:22]} 16. Rxb3 {[%emt 0:00:29]} Qc7 {[%emt 0:02:18]} 17. Qf3 {[%emt 0:05:54]} Ra6 {[%emt 0:04:30]} 18. g4 {[%emt 0:01:00]} e5 {[%emt 0:14:42]} 19. f5 {[%emt 0:07:07]} e4 {[%emt 0:00:33]} 20. Nxe4 {[%emt 0:00:27]} Nxe4 {[%emt 0:00:20]} 21. Qxe4 {[%emt 0:00:33]} Bxh2+ {[%emt 0:00:29]} 22. Kh1 {[%emt 0:00:13]} Qe5 {[%emt 0:05:00]} (22... c5 $11) 23. Qxe5 $14 {[%emt 0:07:00]} Bxe5 {[%emt 0:00:06]} 24. Bf4 {[%emt 0:00:12]} f6 {[%emt 0:12:36][%cal Oh6h5]} 25. Bxe5 {[%emt 0:00:17]} fxe5 {[%emt 0:00:05]} 26. Re1 {[%emt 0:00:30]} h5 {[%emt 0:01:46]} 27. Rxe5 {[%emt 0:01:12]} (27. gxh5 $14 {should be considered.} Bd7 28. Rxe5) 27... hxg4 $11 {[%emt 0:00:14]} 28. Be4 {[%emt 0:04:07]} Kf7 {[%emt 0:01:53]} 29. Rc5 {[%emt 0:03:58]} Rh8+ {[%emt 0:00:55]} 30. Kg2 {[%emt 0:01:49]} Rh6 {[%emt 0:01:57]} (30... Ke7 $1 $11 31. Rxc6 (31. Bxc6 Kd6 $17) 31... Rxc6 32. Bxc6 Bxf5) 31. Kg3 $16 {[%emt 0:03:10]} Bd7 {[%emt 0:04:31]} 32. Rb7 $36 {[%emt 0:01:54][%mdl 2048] Black is under strong pressure.} ({And not} 32. Kxg4 Ke7 $15) 32... Ke7 {[%emt 0:01:07] [#]} 33. f6+ $2 {[%emt 0:00:18]} ({Inferior is} 33. Kxg4 Kd6 34. Re5 Rxa3 35. c5+ Kxe5 $15) (33. Re5+ $1 $18 Kf6 34. Kf4) 33... Rxf6 $11 {[%emt 0:00:38]} 34. Rg5 {[%emt 0:00:32][%csl LRg4,LRg7]} Rf7 {[%emt 0:01:15][%mdl 8192] [#]} (34... g6 $11) 35. Rf5 $1 $18 {[%emt 0:01:01] White is clearly winning.} Rxf5 {[%emt 0:02:50]} 36. Bxf5 {[%emt 0:00:08]} Kf6 {[%emt 0:00:03]} 37. Bxd7 {[%emt 0:00:28]} Rxa3 {[%emt 0:00:08]} 38. Bxc6 {[%emt 0:00:37]} Rxd3+ {[%emt 0:00:07]} 39. Kxg4 {[%emt 0:00:20][%mdl 4096] Endgame KRB-KR} Rc3 {[%emt 0:00:32]} 40. Bd5 {[%emt 0:00:54] Black must now prevent Rf7+.} Ke5 {[%emt 0:09:19]} 41. Re7+ {[%emt 0:39:21]} Kd6 {[%emt 0:30:19]} 42. Rxg7 {[%emt 0:00:00]} Kc5 {[%emt 0:00:00]} 43. Kf4 {[%emt 0:00:00]} Re3 {[%emt 0:00:00]} 44. Rb7 {[%emt 0:00:00]} Re1 {[%emt 0:00:00]} 45. Rb5+ {[%emt 0:00:00]} Kd6 {[%emt 0:00:00]} 46. Bf3 {[%emt 0:00:00]} Rc1 {[%emt 0:00:00]} 47. Be2 {[%emt 0:00:00] Weighted Error Value: White=0.13 (very precise) /Black=0.43} 1-0

[Event "FIDE CB Open 2022"]
[Site "Ceske Budejovice"]
[Date "2022.07.06"]
[Round "6.10"]
[White "Hladky, Tadeas"]
[Black "Zeman, Matyas"]
[Result "0-1"]
[ECO "C04"]
[WhiteElo "2095"]
[BlackElo "2262"]
[Annotator "TA"]
[PlyCount "80"]
[EventDate "2022.07.01"]
[EventType "swiss"]
[EventCountry "CZE"]
[SourceTitle "playchess.com"]
[Source "ChessBase"]
[SourceQuality "1"]
[TimeControl "40/5400+30:1800+30"]

{[%evp 14,80,36,31,52,24,43,50,50,41,45,21,22,6,3,4,2,0,0,0,15,7,12,0,0,0,0,-43,-44,-52,-47,-68,-57,-76,-56,-100,-84,-93,-71,-95,-77,-89,-95,-153,-138,-160,-158,-232,-222,-252,-240,-381,-378,-458,-458,-449,-419,-747,-588,-516,-459,-711,-689,-1236,-1011,-29977,-29978,-29992,-29993]} 1. e4 {[%emt 0:00:04]} e6 {[%emt 0:00:09]} 2. d4 {[%emt 0:00:04]} d5 {[%emt 0:00:04]} 3. Nd2 {[%emt 0:00:04]} Nc6 {[%emt 0:00:05]} 4. Ngf3 {[%emt 0:00:04]} Nf6 {[%emt 0:00:04]} 5. e5 {[%emt 0:00:04]} Nd7 {[%emt 0:00:04]} 6. Nb3 {[%emt 0:00:06]} a5 {[%emt 0:00:04]} 7. a4 {[%emt 0:00:03]} b6 {[%emt 0:00:03]} 8. c3 {[%emt 0:00:03]} Be7 {[%emt 0:00:28] C04: French Tarrasch: 3...Nc6.} 9. Bd3 {[%emt 0:03:21]} Ba6 {[%emt 0:04:54]} 10. Bxa6 {[%emt 0:01:08]} Rxa6 {[%emt 0:00:03] White is slightly better.} 11. h4 {[%emt 0:01:00]} Ra8 {[%emt 0:03:05] [#]} 12. Qe2 $146 {[%emt 0:03:09]} ({Predecessor:} 12. Ng5 Nf8 13. Qf3 f6 14. exf6 gxf6 15. Nh3 Kd7 16. Nf4 Kc8 17. h5 Kb7 18. Bd2 {½-½ (25) Venkatesh,M (2463)-Murshed,N (2455) Bhubaneswar 2011}) 12... Qc8 {[%emt 0:04:52]} 13. Bg5 {[%emt 0:04:13]} Qa6 {[%emt 0:00:18]} 14. Qxa6 {[%emt 0:04:57]} Rxa6 {[%emt 0:00:11]} 15. Bxe7 {[%emt 0:04:10]} Kxe7 {[%emt 0:02:06]} 16. Nc1 {[%emt 0:00:12]} f6 {[%emt 0:00:51]} 17. exf6+ {[%emt 0:04:08]} gxf6 {[%emt 0:00:08]} 18. Nd3 {[%emt 0:00:42]} e5 {[%emt 0:10:46]} 19. dxe5 {[%emt 0:03:06]} fxe5 {[%emt 0:00:29] ...e4 is the strong threat.} 20. Ng5 {[%emt 0:22:40]} (20. O-O-O $5 {[%cal Rh1e1]}) 20... h6 {[%emt 0:05:32]} 21. Nh3 {[%emt 0:00:06]} Raa8 {[%emt 0:10:10]} 22. f3 {[%emt 0:02:17]} Kd6 $36 {[%emt 0:11:48][%mdl 2048] Black has good play.} 23. O-O-O {[%emt 0:04:23]} Rhg8 {[%emt 0:00:39]} 24. Rd2 {[%emt 0:03:56] White is now going downhill.} Ne7 {[%emt 0:04:38]} 25. Rhd1 {[%emt 0:05:03]} c6 {[%emt 0:01:07][%cal Bc7c6,Bc6d5,Bd5d4][%mdl 32]} 26. c4 {[%emt 0:08:37]} Rae8 {[%emt 0:13:59]} 27. cxd5 {[%emt 0:08:27]} cxd5 {[%emt 0:00:22]} 28. g4 {[%emt 0:00:28]} ({White should play} 28. Kb1) 28... Rgf8 {[%emt 0:04:58]} 29. Ng1 {[%emt 0:01:54]} Nc5 {[%emt 0:03:17] [#] Strongly threatening ...Nb3+.} 30. Nxc5 {[%emt 0:01:52]} (30. Rg2 $17 {was called for.}) 30... bxc5 $19 {[%emt 0:00:36]} ({Worse is} 30... Kxc5 31. Kb1 $17) 31. Rd3 {[%emt 0:01:21]} d4 {[%emt 0:01:03]} 32. Rb3 {[%emt 0:00:36]} (32. Ne2 $142) 32... Nd5 {[%emt 0:01:59]} 33. Rb5 {[%emt 0:00:48]} e4 {[%emt 0:04:40]} 34. fxe4 {[%emt 0:00:55]} Rxe4 {[%emt 0:00:04] [#] White must now prevent ...Ne3.} 35. Rxa5 {[%emt 0:01:27]} (35. g5 $142 Rxh4 36. gxh6) 35... Nb4 {[%emt 0:01:09]} 36. Rb5 {[%emt 0:04:01]} Rf2 {[%emt 0:01:33]} 37. Rb6+ {[%emt 0:04:58]} (37. g5 $142 hxg5 38. Rxb4 cxb4 39. Nh3) 37... Kd5 {[%emt 0:00:28]} 38. Rxh6 {[%emt 0:00:41]} Rxg4 {[%emt 0:00:16] ( -> ...Rgg2)} 39. Rh5+ {[%emt 0:00:14]} Kc4 {[%emt 0:00:12]} 40. b3+ {[%emt 0:01:05]} Kxb3 {[%emt 0:00:13] Weighted Error Value: White=0.68/Black=0.12 (very precise)} 0-1

[Event "FIDE CB Open 2022"]
[Site "Ceske Budejovice"]
[Date "2022.07.06"]
[Round "6.11"]
[White "Palchuk, Andrii"]
[Black "Pirola, Claudionor Alcides L"]
[Result "1-0"]
[ECO "D30"]
[WhiteElo "2248"]
[BlackElo "2100"]
[Annotator "TA"]
[PlyCount "61"]
[EventDate "2022.07.01"]
[EventType "swiss"]
[EventCountry "CZE"]
[SourceTitle "playchess.com"]
[Source "ChessBase"]
[SourceQuality "1"]
[TimeControl "40/5400+30:1800+30"]

{[%evp 10,61,25,14,25,13,18,16,18,14,27,0,29,25,45,38,68,0,0,0,115,110,132,129,133,101,141,125,215,200,529,533,528,535,523,519,514,524,458,398,385,399,398,380,394,387,389,381,387,339,396,402,561,545]} 1. d4 {[%emt 0:00:07]} d5 {[%emt 0:00:01]} 2. Nf3 {[%emt 0:00:21]} e6 {[%emt 0:00:56]} 3. c4 {[%emt 0:00:08]} c6 {[%emt 0:00:07]} 4. Qc2 {[%emt 0:02:01]} dxc4 {[%emt 0:00:08]} 5. Qxc4 {[%emt 0:00:24]} Nf6 {[%emt 0:00:02]} 6. Bg5 {[%emt 0:09:52]} b5 {[%emt 0:00:08] D30: Queen's Gambit Declined: Systems without Nc3.} 7. Qc2 {[%emt 0:00:30]} Bb7 {[%emt 0:00:07]} 8. Nbd2 {[%emt 0:06:32]} Nbd7 {[%emt 0:01:52] The position is equal.} 9. e4 {[%emt 0:08:36]} a6 {[%emt 0:04:17]} 10. a4 {[%emt 0:08:47]} (10. Bd3 $5 {[%cal Re4e5]}) 10... Qb6 {[%emt 0:08:13]} 11. Be2 {[%emt 0:02:55]} Rc8 {[%emt 0:04:11]} 12. O-O {[%emt 0:03:07]} h6 {[%emt 0:07:48] [#]} 13. Bh4 $146 {[%emt 0:08:35]} (13. Bxf6 $14 Nxf6 14. Rfc1) ({Predecessor:} 13. Be3 c5 14. Rfc1 Ng4 15. Bf4 g5 16. Bg3 Ngf6 17. axb5 axb5 18. dxc5 Rxc5 19. Qd3 {½-½ (66) Saravanan,V (2281)-Bellahcene,B (2498) Biel 2016}) 13... g5 {[%emt 0:00:46]} 14. Bg3 {[%emt 0:00:02]} g4 {[%emt 0:06:49] [#]} (14... Nh5 $11 {remains equal.}) 15. Ne5 $1 $16 {[%emt 0:03:54] White stays focused until the end.} (15. a5 $6 Qa7 16. Ne5 Qxd4 $11) 15... Qxd4 {[%emt 0:02:00] [#]} 16. Nxd7 {[%emt 0:12:06]} ({Reject} 16. Nxg4 $6 Nxg4 17. Bxg4 h5 $11) 16... Nxd7 {[%emt 0:01:37]} 17. Nb3 $36 {[%emt 0:05:56][%mdl 2048] Black is under strong pressure.} Qb4 {[%emt 0:03:51]} 18. Rfd1 {[%emt 0:01:12] Threatens to win with Rd4.} ({But not} 18. Bxg4 $6 c5 $14) 18... bxa4 {[%emt 0:04:14]} (18... c5 $16) 19. Nd2 $18 {[%emt 0:03:42][%cal Bb3d2,Bd2c4,Bc4d6][%mdl 32]} (19. Qd3 Rd8 20. Nd2 Nb6 $11) 19... Nc5 {[%emt 0:12:26]} (19... Nb6 20. Be5 (20. Bxg4 Bg7 $11) 20... Rg8) 20. Be5 {[%emt 0:00:18]} Rg8 {[%emt 0:00:48]} 21. Bc3 {[%emt 0:02:25]} Qb6 {[%emt 0:00:18]} 22. Nc4 {[%emt 0:01:00]} Qb3 {[%emt 0:01:03]} 23. Qd2 {[%emt 0:01:08] Black must now prevent Bf6.} Be7 {[%emt 0:06:08] Prevents Bf6.} 24. Ra3 {[%emt 0:02:39]} Rd8 {[%emt 0:02:09]} 25. Qxd8+ {[%emt 0:00:11]} Bxd8 {[%emt 0:00:08]} 26. Rxb3 {[%emt 0:00:02]} Nxb3 {[%emt 0:07:40]} 27. Nd6+ {[%emt 0:00:07]} Ke7 {[%emt 0:00:16][%cal Od8a5]} 28. Nxb7 {[%emt 0:00:04]} Bb6 {[%emt 0:01:18]} 29. Nd6 {[%emt 0:04:24]} h5 {[%emt 0:00:46]} 30. Nc4 {[%emt 0:02:39]} Bc5 {[%emt 0:00:16]} 31. Ne5 {[%emt 0:00:26][%csl LRa6,LRc6] Weighted Error Value: White=0.09 (flawless) /Black=0.44} 1-0